{"text_format":"3","workbook":"xlsx","n_sheets":2,"sheets":["Шот","Ұйым орнатылымы"],"not_rendered":{"images":1,"defined_names":20},"read":"whole","date_system":"1900"}

{"sheet":"Шот","index":0,"n_rows":44,"n_cols":6,"rows_kept":44,"merged":[[2,1,2,2],[2,3,3,4],[5,1,5,2],[5,3,5,4],[6,1,6,2],[6,3,6,4],[7,1,7,2],[7,3,7,4],[8,1,8,2],[32,3,33,3],[32,4,33,4],[43,1,43,4]]}
[]
[null,"ЕСЕПШОТ","0005"]
[null,"2012-02-23",null,{"$f":"InvoiceTotal","v":79.65},null," "]
[null,"ТӨЛЕМНІҢ СОҢҒЫ КҮНІ: 3 наурыз 2012 ж.",{"$nulls":3}," "]
[]
[null,"KIM ABERCROMBIE",null,"ADVENTURE WORKS"]
[null,"Fabrikam, Inc.",null,"23456 Maple Street"]
[null,"1234 First Street",null,"Orange Grove, CA 09876"]
[null,"Forest,  OR 12345",null,null,0]
[{"$nulls":4},{"$f":"CompanySetup_AddressLine4","v":0}]
[]
[]
[]
[null,"САНЫ","ТОЛЫҚ ДЕРЕКТЕРІ","БІРЛІК БАҒАСЫ","ЖАЛПЫ ЖОЛ"]
[null,2,"Пиктограммалар",14.95,{"$f":"IFERROR(InvoiceDetails[БІРЛІК БАҒАСЫ]*InvoiceDetails[САНЫ],\"\")","v":{"v":29.9,"d":"29.90"}}]
[null,5,"Жуу құралы",9.95,{"$f":"IFERROR(InvoiceDetails[БІРЛІК БАҒАСЫ]*InvoiceDetails[САНЫ],\"\")","v":49.75}]
[{"$nulls":4},{"$f":"IFERROR(#REF!*#REF!,\"\")","v":""}]
[{"$nulls":4},{"$f":"IFERROR(#REF!*#REF!,\"\")","v":""}]
[{"$nulls":4},{"$f":"IFERROR(#REF!*#REF!,\"\")","v":""}]
[{"$nulls":4},{"$f":"IFERROR(#REF!*#REF!,\"\")","v":""}]
[{"$nulls":4},{"$f":"IFERROR(#REF!*#REF!,\"\")","v":""}]
[{"$nulls":4},{"$f":"IFERROR(#REF!*#REF!,\"\")","v":""}]
[{"$nulls":4},{"$f":"IFERROR(#REF!*#REF!,\"\")","v":""}]
[{"$nulls":4},{"$f":"IFERROR(#REF!*#REF!,\"\")","v":""}]
[{"$nulls":4},{"$f":"IFERROR(#REF!*#REF!,\"\")","v":""}]
[{"$nulls":4},{"$f":"IFERROR(#REF!*#REF!,\"\")","v":""}]
[{"$nulls":4},{"$f":"IFERROR(#REF!*#REF!,\"\")","v":""}]
[{"$nulls":4},{"$f":"IFERROR(#REF!*#REF!,\"\")","v":""}]
[{"$nulls":4},{"$f":"IFERROR(#REF!*#REF!,\"\")","v":""}]
[{"$nulls":3},"Жеңілдік"]
[{"$nulls":3},"Жаңа қорытынды",{"$f":"SUM(InvoiceDetails[ЖАЛПЫ ЖОЛ])-E30","v":{"v":79.65,"d":"Т79.65"}}]
[{"$nulls":3},"Салық"]
[{"$nulls":3},{"$f":"REPT(CompanySetup_YourCurrencyAbbreviation,LEN(CompanySetup_YourCurrencyAbbreviation)>0) & \" ЖАЛПЫ\"","v":"АҚШ ЖАЛПЫ"},{"$f":"E31+E32","v":{"v":79.65,"d":"Т79.65"}}]
[]
[]
[null,"ТӨЛЕМНІҢ ТОЛЫҚ ДЕРЕКТЕРІ",null,null,"БАСҚА АҚПАРАТ"]
[null,{"$f":"\"Бенефициар: \" & CompanySetup_BankBeneficiaryName","v":"Бенефициар: Adventure Works"},null,null,{"$f":"IFERROR(CompanySetup_YourName,\"\")","v":"Грег Аксельрод"}]
[null,{"$f":"\"Банк аты: \" & CompanySetup_BankName","v":"Банк аты: Woodgrove Bank"},null,null,{"$f":"IFERROR(\"Телефон:  \" & CompanySetup_YourPhone,\"\")","v":"Телефон:  425-555-0150"}]
[null,{"$f":"\"Банк мекенжайы: \" & CompanySetup_BankAddress","v":"Банк мекенжайы: 234 Main St. Orange Grove, CA 09876"},null,null,{"$f":"IFERROR(\"Факсимиле:  \" & CompanySetup_YourFax,\"\")","v":"Факсимиле:  425-555-0151"}]
[null,{"$f":"\"Тіркелгі нөмірі: \" & CompanySetup_BankAccount","v":"Тіркелгі нөмірі: 1234567"},null,null,{"$f":"IFERROR(CompanySetup_YourURL,\"\")","v":"Adventure-Works.com"}]
[null,{"$f":"\"Бағыттау нөмірі (SWIFT коды): \" & CompanySetup_BankRouting","v":"Бағыттау нөмірі (SWIFT коды): 9876543210"},null,null,{"$f":"IFERROR(CompanySetup_YourEmail,\"\")","v":"Accounting@Adventure-Works.com"}]
[null,{"$f":"\"Төлемге сілтеме: \" & InvoiceNumberDisplay","v":"Төлемге сілтеме: 0005"},null,null,{"$f":"IFERROR(IF(LEN(Client_PO),\"Contract/PO: \" & Client_PO,\"\"),\"\")","v":""}]
[]
[null,{"$f":"UPPER(\"ТӨЛЕМ БАНК АРҚЫЛЫ АУДАРЫЛУЫ ТИІС НЕМЕСЕ ТӨЛЕМ ЧЕГІМЕН ТӨЛЕНУІ ТИІС \" & CompanySetup_CheckPayee & \".\")","v":"ТӨЛЕМ БАНК АРҚЫЛЫ АУДАРЫЛУЫ ТИІС НЕМЕСЕ ТӨЛЕМ ЧЕГІМЕН ТӨЛЕНУІ ТИІС ADVENTURE WORKS."}]

{"sheet":"Ұйым орнатылымы","index":1,"n_rows":20,"n_cols":3,"rows_kept":20,"merged":[[20,1,20,2]]}
[null,"ҰЙЫМ ОРНАТЫЛЫМЫ"]
[null,"КОМПАНИЯ ФАКТІЛЕРІ","МӘН"]
[null,"Атыңыз","Грег Аксельрод"]
[null,"Ұйым атауы","ADVENTURE WORKS"]
[null,"1-мекенжай жолы","23456 Maple Street"]
[null,"2-мекенжай жолы","Orange Grove, CA 09876"]
[null,"3-мекенжай жолы"]
[null,"4-мекенжай жолы"]
[null,"5-мекенжай жолы"]
[null,"Телефон","425-555-0150"]
[null,"Нақты көшірме","425-555-0151"]
[null,"Веб-торап","Adventure-Works.com"]
[null,"Электрондық пошта","Accounting@Adventure-Works.com"]
[null,"Ақша бірлігінің қысқартылуы","АҚШ"]
[null,"Банктың электрондық жүйесінің бенефициар аты","Adventure Works"]
[null,"Банк аты","Woodgrove Bank"]
[null,"Банк мекенжайы","234 Main St. Orange Grove, CA 09876"]
[null,"Тіркелгі нөмірі",1234567]
[null,"Бағыттау нөмірі (SWIFT коды)",9876543210]
[null,"Төлемдерді тексеру","Adventure Works"]